bitfinex/quotes_BTCUSD_20241009
["timestamp","ask_amount","ask_price","bid_price","bid_amount"]
[1728450551897,0.70289739,62458.0,62457.0,0.00164]
[1728450552585,0.71289739,62458.0,62457.0,0.00164]
[1728450553300,0.71989739,62458.0,62457.0,0.00164]
[1728450553854,0.66308276,62458.0,62457.0,0.00164]
[1728450554075,0.85010513,62458.0,62457.0,0.00164]
[1728450554309,0.68818362,62458.0,62457.0,0.00164]
[1728450554541,0.67818362,62458.0,62457.0,0.00164]
[1728450554772,0.69218362,62458.0,62457.0,0.00164]
[1728450555024,0.70014233,62458.0,62457.0,0.00164]
[1728450555243,0.68614233,62458.0,62457.0,0.00164]
[1728450555476,0.69914233,62458.0,62457.0,0.00164]
[1728450555695,0.70014233,62458.0,62457.0,0.00164]
[1728450555936,0.20514099,62458.0,62457.0,0.33220899]
[1728450556177,0.20514099,62458.0,62457.0,0.39268714]
[1728450556387,0.02801678,62458.0,62457.0,0.39268714]
[1728450556602,0.02801678,62458.0,62457.0,0.55279714]
[1728450556867,0.11294978,62458.0,62457.0,0.39268714]
[1728450557067,0.02801678,62458.0,62457.0,0.39268714]
[1728450557301,0.02801678,62458.0,62457.0,0.55279714]
[1728450557302,0.09995127,62458.0,62457.0,0.55279714]
[1728450557563,0.10795127,62458.0,62457.0,0.39268714]
[1728450557974,0.09395127,62458.0,62457.0,0.39268714]
[1728450558415,0.10795127,62458.0,62457.0,0.61564355]
[1728450558873,0.09395127,62458.0,62457.0,0.61564355]
[1728450559111,0.02501678,62458.0,62457.0,0.61564355]
[1728450559335,0.08895127,62458.0,62457.0,0.61564355]
[1728450559563,0.08595127,62458.0,62457.0,0.61564355]
[1728450559786,0.06197066,62458.0,62457.0,0.61564355]
[1728450560001,0.06697066,62458.0,62457.0,0.61564355]
[1728450560227,0.06897066,62458.0,62457.0,0.61564355]
[1728450560465,0.06697066,62458.0,62457.0,0.61564355]
[1728450560908,0.07097066,62458.0,62457.0,0.61564355]
[1728450561141,0.06197066,62458.0,62457.0,0.61564355]
[1728450561397,0.01601678,62458.0,62457.0,0.61564355]
[1728450561597,0.01901678,62458.0,62457.0,0.61564355]
[1728450561832,0.06497044,62458.0,62457.0,0.61564355]
[1728450562057,0.06597044,62458.0,62457.0,0.61564355]
[1728450562510,0.07097044,62458.0,62457.0,0.61564355]
[1728450563203,0.06697044,62458.0,62457.0,0.61564355]
[1728450563433,0.01901678,62458.0,62457.0,0.61564355]
[1728450563653,0.02101678,62458.0,62457.0,0.61564355]
[1728450563928,0.01901678,62458.0,62457.0,0.61564355]
[1728450564126,0.02301678,62458.0,62457.0,0.61564355]
[1728450564583,0.04411272,62458.0,62457.0,0.61564355]
[1728450564805,0.03911272,62458.0,62457.0,0.61664355]
[1728450565016,0.04011272,62458.0,62457.0,0.21497015]
[1728450565441,0.11204721,62458.0,62457.0,0.21497015]
[1728450565641,0.11104721,62458.0,62457.0,0.21497015]
[1728450565913,0.11604721,62458.0,62457.0,0.21497015]
[1728450566358,0.11504199,62458.0,62457.0,0.21497015]
[1728450566803,0.11604199,62458.0,62457.0,0.21497015]
[1728450567028,0.12004199,62458.0,62457.0,0.21497015]
[1728450567668,0.12404199,62458.0,62457.0,0.21497015]
[1728450567863,0.11104199,62458.0,62457.0,0.21497015]
[1728450568078,0.11504199,62458.0,62457.0,0.21497015]
[1728450568299,0.12004199,62458.0,62457.0,0.21497015]
[1728450568766,0.11504199,62458.0,62457.0,0.21497015]
[1728450569064,0.12004199,62458.0,62457.0,0.21497015]
[1728450569518,0.11104473,62458.0,62457.0,0.21497015]
[1728450569742,0.11504473,62458.0,62457.0,0.21497015]
[1728450569971,0.11604473,62458.0,62457.0,0.21497015]
[1728450570423,0.12004473,62458.0,62457.0,0.21497015]
[1728450570652,0.11604473,62458.0,62457.0,0.21497015]
[1728450571102,0.11504473,62458.0,62457.0,0.21497015]
[1728450571343,0.11504248,62458.0,62457.0,0.21497015]
[1728450571812,0.12004482,62458.0,62457.0,0.21497015]
[1728450572296,0.11504482,62458.0,62457.0,0.21497015]
[1728450572524,0.12004482,62458.0,62457.0,0.21497015]
[1728450572752,0.11604482,62458.0,62457.0,0.21497015]
[1728450572977,0.11104482,62458.0,62457.0,0.21497015]
[1728450573213,0.11504482,62458.0,62457.0,0.21497015]
[1728450573446,0.11104482,62458.0,62457.0,0.21497015]
[1728450573677,0.08594888,62458.0,62457.0,0.21497015]
[1728450573904,0.08994888,62458.0,62457.0,0.21497015]
[1728450574167,0.08594888,62458.0,62457.0,0.21497015]
[1728450574395,0.09094888,62458.0,62457.0,0.21497015]
[1728450574586,0.09594888,62458.0,62457.0,0.21497015]
[1728450574842,0.09094888,62458.0,62457.0,0.21497015]
[1728450575301,0.09594888,62458.0,62457.0,0.21497015]
[1728450575759,0.01401678,62458.0,62457.0,0.21497015]
[1728450575999,0.02001678,62458.0,62457.0,0.21497015]
[1728450576208,0.02401678,62458.0,62457.0,0.21497015]
[1728450576417,0.02001678,62458.0,62457.0,0.21497015]
[1728450576817,0.04811272,62458.0,62457.0,0.21497015]
[1728450577074,0.04511272,62458.0,62457.0,0.21497015]
[1728450577265,0.01401678,62458.0,62457.0,0.21497015]
[1728450577519,0.01701678,62458.0,62457.0,0.21497015]
[1728450577737,0.02101678,62458.0,62457.0,0.21497015]
[1728450578207,0.01701678,62458.0,62457.0,0.21497015]
[1728450578454,0.02101678,62458.0,62457.0,0.21497015]
[1728450578894,0.01701678,62458.0,62457.0,0.21497015]
[1728450579343,0.01801678,62458.0,62457.0,0.21497015]
[1728450579555,0.02101678,62458.0,62457.0,0.21497015]
[1728450580650,0.02101678,62458.0,62457.0,0.33527634]
[1728450581273,0.01701678,62458.0,62457.0,0.33527634]
[1728450581501,0.01701678,62458.0,62457.0,0.49538634]
[1728450581710,0.04211272,62458.0,62457.0,0.49538634]
[1728450582153,0.04311272,62458.0,62457.0,0.49538634]
[1728450582831,0.04011272,62458.0,62457.0,0.49538634]
[1728450583061,0.04011272,62458.0,62457.0,0.49638634]
[1728450585744,0.03911272,62458.0,62457.0,0.49638634]
[1728450585933,0.03911272,62458.0,62457.0,0.49538634]
[1728450586198,0.04311272,62458.0,62457.0,0.49538634]
[1728450587123,0.04811272,62458.0,62457.0,0.49538634]
[1728450589095,0.04811272,62458.0,62457.0,0.37508015]
[1728450589310,0.04811272,62458.0,62457.0,0.21497015]
[1728450589798,0.04811272,62458.0,62457.0,0.37508015]
[1728450593062,0.04411272,62458.0,62457.0,0.37508015]
[1728450593327,0.04211272,62458.0,62457.0,0.37508015]
[1728450593564,0.04311272,62458.0,62457.0,0.37508015]
[1728450594009,0.03911272,62458.0,62457.0,0.37508015]
[1728450594228,0.04411272,62458.0,62457.0,0.37508015]
[1728450594878,0.04311272,62458.0,62457.0,0.37508015]
[1728450595096,0.05011272,62458.0,62457.0,0.37508015]
[1728450595516,0.05611272,62458.0,62457.0,0.37508015]
[1728450596402,0.04911272,62458.0,62457.0,0.37508015]
[1728450596790,0.04611272,62458.0,62457.0,0.37508015]
[1728450597016,0.02101678,62458.0,62457.0,0.37508015]
[1728450597215,0.01401678,62458.0,62457.0,0.37508015]
[1728450597389,0.09295017,62458.0,62457.0,0.37508015]
[1728450597832,0.09295017,62458.0,62457.0,0.21497015]
[1728450598030,0.09895017,62458.0,62457.0,0.21497015]
[1728450598200,0.12404611,62458.0,62457.0,0.37508015]
[1728450598409,0.32521493,62458.0,62457.0,0.37508015]
[1728450599068,0.31921493,62458.0,62457.0,0.37508015]
[1728450599291,0.22230374,62458.0,62457.0,0.37508015]
[1728450599801,0.22930374,62458.0,62457.0,0.37508015]
[1728450600229,0.2042078,62458.0,62457.0,0.37508015]
[1728450603792,0.22930309,62458.0,62457.0,0.37508015]
[1728450604031,0.22930309,62458.0,62457.0,0.16498015]
[1728450607505,0.22930309,62458.0,62457.0,0.00487015]
[1728450608853,0.22930309,62458.0,62457.0,0.16498015]
[1728450609306,0.21528631,62458.0,62457.0,0.16498015]
[1728450609758,0.22942541,62458.0,62457.0,0.16498015]
[1728450610210,0.20433012,62458.0,62457.0,0.16498015]
[1728450610456,0.20433012,62458.0,62457.0,0.37788015]
[1728450613048,0.20433012,62458.0,62457.0,0.29998015]
[1728450613526,0.20433012,62458.0,62457.0,0.00487015]
[1728450615570,0.20433012,62458.0,62457.0,0.16498015]
[1728450615818,0.20433012,62458.0,62457.0,0.00487015]
[1728450619202,0.52014155,62458.0,62457.0,0.00164]
[1728450620077,0.56668563,62458.0,62457.0,0.00164]
[1728450620330,0.69778563,62458.0,62457.0,0.00164]
[1728450622443,0.65124155,62458.0,62457.0,0.00164]
[1728450622901,0.86003099,62458.0,62457.0,0.00164]
[1728450623120,0.96622848,62458.0,62457.0,0.00164]
[1728450623822,0.9660489,62458.0,62457.0,0.00164]
[1728450624287,1.0660489,62458.0,62457.0,0.00164]
[1728450624504,0.9038654,62458.0,62457.0,0.00164]
[1728450626084,0.8968654,62458.0,62457.0,0.00164]
[1728450626321,0.8908654,62458.0,62457.0,0.00164]
[1728450626568,0.9158654,62458.0,62457.0,0.00164]
[1728450627036,0.8908654,62458.0,62457.0,0.00164]
[1728450627271,0.9048654,62458.0,62457.0,0.00164]
[1728450627496,1.06694405,62458.0,62457.0,0.00164]
[1728450628710,1.08094405,62458.0,62457.0,0.00164]
[1728450628955,0.8908654,62458.0,62457.0,0.00164]
[1728450629300,0.9178654,62458.0,62457.0,0.00164]
[1728450629508,1.07990078,62458.0,62457.0,0.00164]
[1728450629737,1.0667388,62458.0,62457.0,0.00164]
[1728450630421,1.0807388,62458.0,62457.0,0.00164]
[1728450630854,0.91870341,62458.0,62457.0,0.00164]
[1728450631735,1.0667003,62458.0,62457.0,0.00164]
[1728450632200,1.0807003,62458.0,62457.0,0.00164]
[1728450632385,1.02760281,62458.0,62457.0,0.00164]
[1728450632512,1.06670133,62458.0,62457.0,0.00164]
[1728450632967,1.05270133,62458.0,62457.0,0.00164]
[1728450633171,1.06670133,62458.0,62457.0,0.00164]
[1728450633414,0.91870444,62458.0,62457.0,0.00164]
[1728450633684,0.90470444,62458.0,62457.0,0.00164]
[1728450633888,0.89070444,62458.0,62457.0,0.00164]
[1728450634335,0.90470444,62458.0,62457.0,0.00164]
[1728450635829,0.89070444,62458.0,62457.0,0.00164]
[1728450636043,0.90470444,62458.0,62457.0,0.00164]
[1728450636244,0.91870444,62458.0,62457.0,0.00164]
[1728450636387,0.89070444,62458.0,62457.0,0.00164]
[1728450636589,0.89247429,62458.0,62457.0,0.00164]
[1728450636790,0.92047429,62458.0,62457.0,0.00164]
[1728450636999,0.94347429,62458.0,62457.0,0.00164]
[1728450638595,1.19111615,62458.0,62457.0,0.00164]
[1728450639053,1.17711615,62458.0,62457.0,0.00164]
[1728450639268,0.91527644,62458.0,62457.0,0.00164]
[1728450639492,0.92027644,62458.0,62457.0,0.00164]
[1728450640169,0.90627644,62458.0,62457.0,0.00164]
[1728450640381,1.0681046,62458.0,62457.0,0.00164]
[1728450640595,1.0821046,62458.0,62457.0,0.00164]
[1728450640836,1.05700608,62458.0,62457.0,0.00164]
[1728450641059,1.04300608,62458.0,62457.0,0.00164]
[1728450641780,1.05700608,62458.0,62457.0,0.00164]
[1728450642652,1.05700608,62458.0,62457.0,0.00164]
[1728450643541,1.05693575,62458.0,62457.0,0.00164]
[1728450643973,0.89512742,62458.0,62457.0,0.00164]
[1728450644218,0.92022678,62458.0,62457.0,0.00164]
[1728450644932,1.08203511,62458.0,62457.0,0.00164]
[1728450646291,0.92022678,62458.0,62457.0,0.00164]
[1728450647716,1.08202299,62458.0,62457.0,0.00164]
[1728450648176,1.08202392,62458.0,62457.0,0.00164]
[1728450648625,1.08200691,62458.0,62457.0,0.00164]
[1728450648881,1.05690755,62458.0,62457.0,0.00164]
[1728450650704,0.68114284,62458.0,62457.0,0.00164]
[1728450652119,0.70624116,62458.0,62457.0,0.00164]
[1728450653487,0.86809104,62458.0,62457.0,0.00164]
[1728450654163,0.7062699,62458.0,62457.0,0.00164]
[1728450660804,0.86809104,62458.0,62457.0,0.00164]
[1728450661503,0.86827581,62458.0,62457.0,0.00164]
[1728450662376,0.7062699,62458.0,62457.0,0.00164]
[1728450662908,0.86830162,62458.0,62457.0,0.00164]
[1728450663130,0.7062699,62458.0,62457.0,0.00164]
[1728450666498,0.68117158,62458.0,62457.0,0.00164]
[1728450666935,0.68152828,62458.0,62457.0,0.00164]
[1728450668786,0.70662648,62458.0,62457.0,0.00164]
[1728450671803,0.70668583,62458.0,62457.0,0.00164]
[1728450676570,0.68158763,62458.0,62457.0,0.00164]
[1728450678748,0.70668578,62458.0,62457.0,0.00164]
[1728450684644,0.69268578,62458.0,62457.0,0.00164]
[1728450684866,0.70668578,62458.0,62457.0,0.00164]
[1728450685090,0.67868578,62458.0,62457.0,0.00164]
[1728450685325,0.69268578,62458.0,62457.0,0.00164]
[1728450686506,0.67868578,62458.0,62457.0,0.00164]
[1728450686732,0.68158763,62458.0,62457.0,0.00164]
[1728450687214,0.74288763,62458.0,62457.0,0.00164]
[1728450687435,0.75688763,62458.0,62457.0,0.00164]
[1728450688563,0.78198626,62458.0,62457.0,0.00164]
[1728450690973,0.75688763,62458.0,62457.0,0.00164]
[1728450692566,0.68158763,62458.0,62457.0,0.00164]
[1728450694251,0.70668653,62458.0,62457.0,0.00164]
[1728450706386,0.52927861,62458.0,62457.0,0.00164]
[1728450710415,0.50417971,62458.0,62457.0,0.00164]
[1728450710894,0.160131,62449.0,62447.0,0.0824]
[1728450711120,0.160133,62448.0,62447.0,0.0824]
[1728450711613,0.17559303,62448.0,62447.0,0.0824]
[1728450713156,0.20069236,62448.0,62447.0,0.0824]
[1728450713381,0.24726169,62448.0,62447.0,0.0824]
[1728450713783,0.24726169,62448.0,62447.0,0.2097]
[1728450713947,0.24726169,62448.0,62447.0,0.210521]
[1728450714572,0.26426169,62448.0,62447.0,0.210521]
[1728450715183,0.21769236,62448.0,62447.0,0.210521]
[1728450715450,0.36196721,62448.0,62447.0,0.210521]
[1728450716127,0.20183421,62448.0,62447.0,0.38024732]
[1728450716360,0.05755936,62448.0,62447.0,0.38024732]
[1728450719515,0.20183421,62448.0,62447.0,0.38024732]
[1728450720686,0.05755936,62448.0,62447.0,0.38024732]
[1728450721537,0.20183387,62448.0,62447.0,0.38024732]
[1728450721738,0.17673454,62448.0,62447.0,0.38024732]
[1728450721971,0.03246003,62448.0,62447.0,0.38024732]
[1728450722800,0.17673706,62448.0,62447.0,0.38024732]
[1728450723190,0.03246003,62448.0,62447.0,0.38024732]
[1728450723407,0.03246003,62448.0,62447.0,0.33082719]
[1728450724778,0.17674463,62448.0,62447.0,0.33082719]
[1728450725214,0.03246003,62448.0,62447.0,0.33082719]
[1728450725703,0.03246003,62448.0,62447.0,0.49419234]
[1728450725917,0.10459297,62448.0,62447.0,0.49619234]
[1728450726175,0.03160176,62448.0,62447.0,0.49619234]
[1728450726412,0.017,62448.0,62447.0,0.49619234]
[1728450727134,0.0480331,62452.0,62447.0,0.33605734]
[1728450727360,0.0480331,62454.0,62453.0,0.36325015]
[1728450727791,0.3041923,62464.0,62453.0,0.20313015]
[1728450727792,0.12008275,62455.0,62453.0,0.20313015]
[1728450728021,0.1440993,62460.0,62453.0,0.20313015]
[1728450728022,0.14517849,62454.0,62453.0,0.07863015]
[1728450728256,0.14517849,62454.0,62453.0,0.00323015]
[1728450728480,0.30529649,62454.0,62453.0,0.00323015]
[1728450729822,0.18521274,62454.0,62453.0,0.00323015]
[1728450730043,0.18521274,62454.0,62453.0,0.12353634]
[1728450730538,0.18521274,62454.0,62447.0,0.321091]
[1728450730539,0.16012,62453.0,62449.0,0.00323015]
[1728450730770,0.12002681,62450.0,62449.0,0.00323015]
[1728450730984,0.31553644,62452.0,62449.0,0.00323015]
[1728450730985,0.31553644,62452.0,62449.0,0.12353634]
[1728450731199,0.160126,62451.0,62447.0,0.000821]
[1728450731421,0.12003504,62448.0,62447.0,0.12435734]
[1728450731638,0.160131,62449.0,62447.0,0.12435734]
[1728450731848,0.31554444,62449.0,62447.0,0.12435734]
[1728450732063,0.160133,62448.0,62447.0,0.12112719]
[1728450732285,0.15541344,62449.0,62447.0,0.12435734]
[1728450733185,0.15941344,62449.0,62447.0,0.12435734]
[1728450734372,0.18451251,62449.0,62447.0,0.12435734]
[1728450734608,0.34464251,62449.0,62447.0,0.12435734]
[1728450734830,0.34764251,62449.0,62447.0,0.12435734]
[1728450737585,0.34764251,62449.0,62447.0,0.12112719]
[1728450737812,0.34764251,62449.0,62447.0,0.12435734]
[1728450740207,0.01463302,62448.0,62447.0,0.12435734]
[1728450741526,0.01963302,62448.0,62447.0,0.12435734]
[1728450752229,0.01463302,62448.0,62447.0,0.12435734]
[1728450752451,0.01932225,62448.0,62447.0,0.12435734]
[1728450753110,0.01932225,62448.0,62447.0,0.12112719]
[1728450753342,0.01932225,62448.0,62447.0,0.12435734]
[1728450758089,0.19447605,62448.0,62447.0,0.000821]
[1728450758314,0.19447605,62448.0,62447.0,0.00405115]
[1728450759993,0.19447605,62448.0,62447.0,0.04494128]
[1728450760449,0.19447605,62448.0,62447.0,0.00405115]
[1728450761402,0.40247605,62448.0,62447.0,0.00405115]
[1728450762123,0.38745525,62448.0,62447.0,0.00405115]
[1728450762615,0.40248546,62448.0,62447.0,0.00405115]
[1728450764240,0.40248546,62448.0,62447.0,0.000821]
[1728450764475,0.40248546,62448.0,62447.0,0.00405115]
[1728450765421,0.44904297,62448.0,62447.0,0.00405115]
[1728450767378,0.44904175,62448.0,62447.0,0.00405115]
[1728450767611,0.37134175,62448.0,62447.0,0.00405115]
[1728450768819,0.37134095,62448.0,62447.0,0.00405115]
[1728450769762,0.52675439,62448.0,62447.0,0.00405115]
[1728450769994,0.52675439,62448.0,62447.0,0.000821]
[1728450770782,0.6708864,62448.0,62447.0,0.000821]
[1728450772216,0.67088583,62448.0,62447.0,0.000821]
[1728450773360,0.52675382,62448.0,62447.0,0.000821]
[1728450773823,0.52839582,62448.0,62447.0,0.000821]
[1728450778885,0.52839449,62448.0,62447.0,0.000821]
[1728450781795,0.39809449,62448.0,62447.0,0.01325673]
[1728450783192,0.3830682,62448.0,62447.0,0.01325673]
[1728450784075,0.39809493,62448.0,62447.0,0.01325673]
[1728450784542,0.42319465,62448.0,62447.0,0.01325673]
[1728450784771,0.42319579,62448.0,62447.0,0.01325673]
[1728450785421,0.26306279,62448.0,62447.0,0.01325673]
[1728450785908,0.42319579,62448.0,62447.0,0.01325673]
[1728450786331,0.26306279,62448.0,62447.0,0.01325673]
[1728450786986,0.42319579,62448.0,62447.0,0.01325673]
[1728450787229,0.20147741,62448.0,62447.0,0.01325673]
[1728450787463,0.36161041,62448.0,62447.0,0.01325673]
[1728450788436,0.40816265,62448.0,62447.0,0.01325673]
[1728450788885,0.24802965,62448.0,62447.0,0.01325673]
[1728450790284,0.22292993,62448.0,62447.0,0.01325673]
[1728450790793,0.06751649,62448.0,62447.0,0.17339173]
[1728450791046,0.14115116,62448.0,62447.0,0.41302188]
[1728450791289,0.13212223,62448.0,62447.0,0.41302188]
[1728450791536,0.03599205,62448.0,62447.0,0.41302188]
[1728450791770,0.0216698,62448.0,62447.0,0.41302188]
[1728450792229,0.09075437,62448.0,62447.0,0.41302188]
[1728450792680,0.10507836,62448.0,62447.0,0.41402188]
[1728450792920,0.03299379,62448.0,62447.0,0.41402188]
[1728450793456,0.03299379,62448.0,62447.0,0.41602188]
[1728450793693,0.0166698,62448.0,62447.0,0.41602188]
[1728450793911,0.0166698,62448.0,62447.0,0.41702188]
[1728450794644,0.001642,62457.0,62456.0,0.31414215]
[1728450794881,0.001642,62457.0,62456.0,0.43444834]
[1728450795130,0.01598697,62457.0,62456.0,0.43444834]
[1728450795350,0.001642,62457.0,62456.0,0.43444834]
[1728450797593,0.002642,62457.0,62456.0,0.51634834]
[1728450798103,0.001642,62457.0,62456.0,0.51434834]
[1728450798316,0.002642,62457.0,62456.0,0.51434834]
[1728450798759,0.001642,62457.0,62456.0,0.51534834]
[1728450806044,0.001642,62457.0,62456.0,0.39504215]
[1728450806281,0.001642,62457.0,62456.0,0.28464834]
[1728450807168,0.001642,62457.0,62456.0,0.28364834]
[1728450807850,0.002642,62457.0,62456.0,0.28364834]
[1728450808056,0.002642,62457.0,62456.0,0.28464834]
[1728450808490,0.001642,62457.0,62456.0,0.28464834]
[1728450808767,0.001642,62457.0,62456.0,0.48474834]
[1728450808987,0.001642,62457.0,62456.0,0.50774834]
[1728450815715,0.001642,62457.0,62456.0,0.50974834]
[1728450816661,0.001642,62457.0,62456.0,0.50774834]
[1728450822055,0.001642,62457.0,62456.0,0.50974834]
[1728450822546,0.001642,62457.0,62456.0,0.50774834]
[1728450822767,0.001642,62457.0,62456.0,0.50974834]
[1728450823000,0.001642,62457.0,62456.0,0.50774834]
[1728450825124,0.000821,62461.0,62460.0,0.00523015]
[1728450825371,0.17327456,62473.0,62472.0,0.160071]
[1728450825616,0.17327456,62473.0,62472.0,0.28037719]
[1728450825617,0.14002289,62473.0,62472.0,0.28037719]
[1728450827203,0.14802289,62473.0,62472.0,0.28037719]
[1728450827660,0.15502289,62473.0,62472.0,0.28037719]
[1728450827910,0.15502289,62473.0,62472.0,0.31948574]
[1728450828818,0.02962289,62473.0,62472.0,0.31948574]
[1728450833151,0.07749745,62473.0,62472.0,0.31948574]
[1728450833428,0.07913945,62473.0,62472.0,0.31948574]
[1728450833669,0.07913945,62473.0,62472.0,0.32271589]
[1728450833895,0.03126489,62473.0,62472.0,0.32271589]
[1728450834372,0.03126489,62473.0,62472.0,0.34571589]
[1728450834614,0.016642,62473.0,62472.0,0.34571589]
[1728450835310,0.008642,62473.0,62472.0,0.34571589]
[1728450835547,0.001642,62473.0,62472.0,0.34571589]
[1728450835789,0.01762882,62473.0,62472.0,0.34571589]
[1728450836242,0.001642,62473.0,62472.0,0.34571589]
[1728450836500,0.01762879,62473.0,62472.0,0.34571589]
[1728450838835,0.01662879,62473.0,62472.0,0.34571589]
[1728450839559,0.01662879,62473.0,62472.0,0.34671589]
[1728450839781,0.001642,62473.0,62472.0,0.34671589]
[1728450840424,0.002642,62473.0,62472.0,0.34671589]
[1728450841299,0.002642,62473.0,62472.0,0.32371589]
[1728450841526,0.01729091,62473.0,62472.0,0.32371589]
[1728450841731,0.01729091,62473.0,62472.0,0.32271589]
[1728450842615,0.01629091,62473.0,62472.0,0.32271589]
[1728450842852,0.01729091,62473.0,62472.0,0.32271589]
[1728450843324,0.01729091,62473.0,62472.0,0.16264489]
[1728450843543,0.01729091,62473.0,62472.0,0.32271589]
[1728450845319,0.04238058,62473.0,62472.0,0.32271589]
[1728450846941,0.01729091,62473.0,62472.0,0.32271589]
[1728450855994,0.01629091,62473.0,62472.0,0.32271589]
[1728450856240,0.01729091,62473.0,62472.0,0.32271589]
[1728450857764,0.15189091,62473.0,62472.0,0.2024097]
[1728450857926,0.3060203,62473.0,62472.0,0.16264489]
[1728450858138,0.23409091,62473.0,62472.0,0.32271589]
[1728450858353,0.30602942,62473.0,62472.0,0.32271589]
[1728450859300,0.30602942,62473.0,62472.0,0.16264489]
[1728450859525,0.30602942,62473.0,62472.0,0.32271589]
[1728450860231,0.46609842,62473.0,62472.0,0.0423387]
[1728450860471,0.320144,62472.0,62468.0,0.00323015]
[1728450860716,0.25602191,62469.0,62468.0,0.00323015]
[1728450860952,0.18972744,62469.0,62468.0,0.00323015]
[1728450861433,0.30965607,62469.0,62468.0,0.00323015]
[1728450861673,0.14957707,62469.0,62468.0,0.00423015]
[1728450861887,0.14957707,62469.0,62468.0,0.01568378]
[1728450862339,0.15857707,62469.0,62468.0,0.01568378]
[1728450862830,0.15357707,62469.0,62468.0,0.01568378]
[1728450863034,0.39655607,62469.0,62468.0,0.00323015]
[1728450863669,0.133,62468.0,62462.0,0.000821]
[1728450863881,0.0719694,62465.0,62464.0,0.00323015]
[1728450864096,0.01501196,62465.0,62464.0,0.00323015]
[1728450864309,0.12559549,62465.0,62464.0,0.00323015]
[1728450864729,0.15068879,62465.0,62464.0,0.12353634]
[1728450865743,0.15168879,62465.0,62464.0,0.12353634]
[1728450865956,0.15168879,62465.0,62462.0,0.000821]
[1728450865957,0.260094,62463.0,62462.0,0.000821]
[1728450866175,0.5657194,62463.0,62462.0,0.000821]
[1728450866384,0.58033453,62463.0,62462.0,0.000821]
[1728450868508,0.66893453,62463.0,62462.0,0.000821]
[1728450869346,0.66793453,62463.0,62462.0,0.001821]
[1728450869554,0.8048104,62463.0,62462.0,0.000821]
[1728450869991,0.8178104,62463.0,62462.0,0.001821]
[1728450870213,0.8178104,62463.0,62462.0,0.000821]
[1728450870214,0.8048104,62463.0,62462.0,0.000821]
[1728450870421,0.8047669,62463.0,62462.0,0.000821]
[1728450870625,0.66093453,62463.0,62462.0,0.000821]
[1728450871000,0.68603151,62463.0,62462.0,0.000821]
[1728450871207,0.69703151,62463.0,62462.0,0.000821]
[1728450871650,0.69903151,62463.0,62462.0,0.001821]
[1728450871850,0.71203151,62463.0,62462.0,0.001821]
[1728450872054,0.69701955,62463.0,62462.0,0.001821]
[1728450877091,0.68687906,62463.0,62462.0,0.001821]
[1728450878175,0.80652066,62463.0,62462.0,0.001821]
[1728450879023,0.79156417,62463.0,62462.0,0.001821]
[1728450880158,0.79153891,62463.0,62462.0,0.001821]
[1728450880377,0.83159117,62463.0,62462.0,0.001821]
[1728450881009,0.81663568,62463.0,62462.0,0.001821]
[1728450881461,0.69701934,62463.0,62462.0,0.001821]
[1728450881668,0.81663015,62463.0,62462.0,0.001821]
[1728450886629,0.81663381,62463.0,62462.0,0.001821]
[1728450887319,0.79153704,62463.0,62462.0,0.001821]
[1728450888478,0.71093704,62463.0,62462.0,0.01403372]
[1728450888690,0.71093704,62463.0,62462.0,0.001821]
[1728450891244,0.71257904,62463.0,62462.0,0.001821]
[1728450891484,0.71259041,62463.0,62462.0,0.001821]
[1728450891738,0.73768725,62463.0,62462.0,0.001821]
[1728450892638,0.61806141,62463.0,62462.0,0.001821]
[1728450893583,0.67949543,62463.0,62462.0,0.001821]
[1728450894941,0.66448825,62463.0,62462.0,0.001821]
[1728450897329,0.63939141,62463.0,62462.0,0.001821]
[1728450900387,0.66448797,62463.0,62462.0,0.001821]
[1728450901717,0.80822442,62463.0,62462.0,0.001821]
[1728450902633,0.66448797,62463.0,62462.0,0.001821]
[1728450903067,0.80830688,62463.0,62462.0,0.001821]
[1728450903334,0.66448797,62463.0,62462.0,0.001821]
[1728450904993,0.67952017,62463.0,62462.0,0.001821]
[1728450905969,0.66448797,62463.0,62462.0,0.001821]
[1728450906222,0.67952019,62463.0,62462.0,0.001821]
[1728450907177,0.65442363,62463.0,62462.0,0.001821]
[1728450907622,0.81632498,62463.0,62462.0,0.001821]
[1728450908082,0.81632505,62463.0,62462.0,0.001821]
[1728450908540,0.6544237,62463.0,62462.0,0.001821]
[1728450909500,0.65442373,62463.0,62462.0,0.001821]
[1728450910905,0.1298,62462.0,62450.0,0.00323015]
[1728450911123,0.160125,62451.0,62450.0,0.00323015]
[1728450911345,0.36196528,62451.0,62450.0,0.00323015]
[1728450911562,0.37693903,62451.0,62450.0,0.00323015]
[1728450911785,0.21681403,62451.0,62450.0,0.00323015]
[1728450912335,0.37693903,62451.0,62450.0,0.00323015]
[1728450913006,0.37693903,62451.0,62448.0,0.000821]
[1728450913007,0.16013,62449.0,62448.0,0.00405115]
[1728450913215,0.15541344,62449.0,62448.0,0.00405115]
[1728450913431,0.17038282,62449.0,62448.0,0.00405115]
[1728450913652,0.33051282,62449.0,62448.0,0.00405115]
[1728450914339,0.17038282,62449.0,62448.0,0.00405115]
[1728450914533,0.17138282,62449.0,62448.0,0.00405115]
[1728450914749,0.33151282,62449.0,62448.0,0.00405115]
[1728450915646,0.33151282,62449.0,62448.0,0.000821]
[1728450916139,0.37804217,62449.0,62448.0,0.000821]
[1728450916828,0.38104217,62449.0,62448.0,0.000821]
[1728450917046,0.51494217,62449.0,62448.0,0.000821]
[1728450917501,0.51894217,62449.0,62448.0,0.000821]
[1728450917917,0.51194217,62449.0,62448.0,0.000821]
[1728450918786,0.51794217,62449.0,62448.0,0.000821]
[1728450919221,0.52494217,62449.0,62448.0,0.000821]
[1728450919658,0.47841282,62449.0,62448.0,0.000821]
[1728450920202,0.52491385,62449.0,62448.0,0.000821]
[1728450920452,0.76362374,62449.0,62448.0,0.000821]
[1728450920686,0.76352895,62449.0,62448.0,0.000821]
[1728450920926,0.60141385,62449.0,62448.0,0.000821]
[1728450921150,0.76352895,62449.0,62448.0,0.000821]
[1728450921411,0.86352895,62449.0,62448.0,0.000821]
[1728450921846,0.70141385,62449.0,62448.0,0.000821]
[1728450922279,0.86352895,62449.0,62448.0,0.000821]
[1728450922538,0.70141385,62449.0,62448.0,0.000821]
[1728450926065,0.62491385,62449.0,62448.0,0.000821]
[1728450926322,0.49001385,62449.0,62448.0,0.000821]
[1728450926554,0.44351282,62449.0,62448.0,0.000821]
[1728450928172,0.42734688,62449.0,62448.0,0.000821]
[1728450928417,0.28338282,62449.0,62448.0,0.000821]
[1728450929131,0.28338282,62449.0,62448.0,0.160954]
[1728450929346,0.02796938,62449.0,62448.0,0.07489963]
[1728450929578,0.12393386,62449.0,62448.0,0.31736278]
[1728450929842,0.10896448,62449.0,62448.0,0.31736278]